Workbook

Sheet Analysis
A1: 2014-04-14 | B1: 104.4 | C1: 180 | D1: =SUM(B1:B1) -> 104.4 | E1: =SUM(C1:C1) -> 180
A2: =A1+7 -> 2014-04-21 | B2: 104.4 | C2: 180 | D2: =SUM(B1:B2) -> 208.8 | E2: =SUM(C1:C2) -> 360
A3: =A2+7 -> 2014-04-28 | B3: 104.4 | C3: 180 | D3: =SUM(B1:B3) -> 313.2 | E3: =SUM(C1:C3) -> 540
A4: 2014-05-05 | B4: 104.4 | C4: 180 | D4: =SUM(B1:B4) -> 417.6 | E4: =SUM(C1:C4) -> 720
A5: 2014-05-12 | B5: 104.4 | C5: 180 | D5: =SUM(B1:B5) -> 522 | E5: =SUM(C1:C5) -> 900
A6: 2014-05-19 | B6: 104.4 | C6: 180 | D6: =SUM(B1:B6) -> 626.4 | E6: =SUM(C1:C6) -> 1080
A7: 2014-05-26 | B7: 104.4 | C7: 180 | D7: =SUM(B1:B7) -> 730.8 | E7: =SUM(C1:C7) -> 1260
A8: 2014-06-02 | B8: 104.4 | C8: 180 | D8: =SUM(B1:B8) -> 835.2 | E8: =SUM(C1:C8) -> 1440
A9: 2014-06-09 | B9: 104.4 | C9: 180 | D9: =SUM(B1:B9) -> 939.6 | E9: =SUM(C1:C9) -> 1620
A10: 2014-06-16 | B10: 104.4 | C10: 180 | D10: =SUM(B1:B10) -> 1044 | E10: =SUM(C1:C10) -> 1800
A11: 2014-06-23 | B11: 104.4 | C11: 180
A12: season lock
A13: Raw Counts | K13: % Distributions
A14: Weeks Remaining | B14: Bronze | C14: Silver | D14: Gold | E14: Platinum | F14: Diamond | G14: Master | H14: GM | I14: Totals | K14: Bronze | L14: Silver | M14: Gold | N14: Platinum | O14: Diamond | P14: Master
A15: 1 | B15: 403 | C15: 756 | D15: 3510 | E15: 2906 | F15: 3697 | G15: =COUNTIF(Master!$C$1:$C$2550,Analysis!A15) -> 647 | H15: =COUNTIF(GM!$C$1:$C$199,Analysis!A15) -> 196 | I15: =SUM(B15:H15) -> 12115 | K15: =B15/$I15 -> 0.03326454808 | L15: 0.06240198102 | M15: 0.2897234833 | N15: 0.2398679323 | O15: 0.3051588939 | P15: =G15/$I15 -> 0.05340487
A16: 2 | B16: 187 | C16: 291 | D16: 1474 | E16: 1061 | F16: 1111 | G16: =COUNTIF(Master!$C$1:$C$2550,Analysis!A16) -> 204 | H16: =COUNTIF(GM!$C$1:$C$199,Analysis!A16) -> 0 | I16: =SUM(B16:H16) -> 4328 | K16: =B16/$I16 -> 0.04320702403 | L16: =C16/$I16 -> 0.06723659889 | M16: =D16/$I16 -> 0.3405730129 | N16: =E16/$I16 -> 0.2451478743 | O16: =F16/$I16 -> 0.2567005545 | P16: 0.0471349353
A17: 3 | B17: 151 | C17: 302 | D17: 1433 | E17: 1134 | F17: 982 | G17: =COUNTIF(Master!$C$1:$C$2550,Analysis!A17) -> 147 | H17: =COUNTIF(GM!$C$1:$C$199,Analysis!A17) -> 0 | I17: 4149 | K17: 0.03639431188 | L17: 0.07278862376 | M17: 0.34538443 | N17: 0.273318872 | O17: 0.2366835382 | P17: 0.03543022415
A18: 4 | B18: 139 | C18: 369 | D18: 1634 | E18: 1076 | F18: 987 | G18: =COUNTIF(Master!$C$1:$C$2550,Analysis!A18) -> 208 | H18: =COUNTIF(GM!$C$1:$C$199,Analysis!A18) -> 0 | I18: 4413 | K18: 0.03149784727 | L18: 0.08361658736 | M18: 0.3702696578 | N18: 0.2438250623 | O18: 0.2236573759 | P18: 0.0471334693
A19: 5 | B19: 223 | C19: 447 | D19: 1957 | E19: 1300 | F19: 1029 | G19: =COUNTIF(Master!$C$1:$C$2550,Analysis!A19) -> 195 | H19: =COUNTIF(GM!$C$1:$C$199,Analysis!A19) -> 0 | I19: 5151 | J19: =SUM(I15:I19) -> 30156 | K19: 0.04329256455 | L19: 0.08677926616 | M19: 0.3799262279 | N19: 0.252378179 | O19: 0.1997670355 | P19: 0.03785672685
A20: 6 | B20: 241 | C20: 706 | D20: 2728 | E20: 1531 | F20: 1091 | G20: =COUNTIF(Master!$C$1:$C$2550,Analysis!A20) -> 244 | H20: =COUNTIF(GM!$C$1:$C$199,Analysis!A20) -> 0 | I20: 6541 | K20: 0.03684451919 | L20: 0.1079345666 | M20: 0.4170616114 | N20: 0.23406207 | O20: 0.1667940682 | P20: 0.03730316465
A21: 7 | B21: 344 | C21: 1163 | D21: 3740 | E21: 1681 | F21: 1229 | G21: =COUNTIF(Master!$C$1:$C$2550,Analysis!A21) -> 225 | H21: =COUNTIF(GM!$C$1:$C$199,Analysis!A21) -> 0 | I21: 8382 | K21: 0.0410403245 | L21: 0.1387497017 | M21: 0.4461942257 | N21: 0.200548795 | O21: 0.1466237175 | P21: 0.0268432355
A22: 8 | B22: 713 | C22: 2556 | D22: 5628 | E22: 1871 | F22: 1106 | G22: =COUNTIF(Master!$C$1:$C$2550,Analysis!A22) -> 261 | H22: =COUNTIF(GM!$C$1:$C$199,Analysis!A22) -> 0 | I22: =SUM(B22:H22) -> 12135 | K22: 0.05875566543 | L22: 0.2106304079 | M22: 0.4637824475 | N22: 0.1541821178 | O22: 0.09114132674 | P22: 0.02150803461
A23: 9 | B23: 2176 | C23: 7313 | D23: 8921 | E23: 2662 | F23: 1535 | G23: =COUNTIF(Master!$C$1:$C$2550,Analysis!A23) -> 230 | H23: =COUNTIF(GM!$C$1:$C$199,Analysis!A23) -> 0 | I23: =SUM(B23:H23) -> 22837 | K23: 0.095283969 | L23: 0.3202259491 | M23: 0.3906379997 | N23: 0.1165652231 | O23: 0.06721548364 | P23: 0.0100713754
A24: 10 | B24: 8182 | C24: 15229 | D24: 8716 | E24: 3042 | F24: 1292 | G24: =COUNTIF(Master!$C$1:$C$2550,Analysis!A24) -> 189 | H24: 0 | I24: =SUM(B24:H24) -> 36650 | J24: =SUM(I23:I24) -> 59487 | K24: 0.2232469304 | L24: 0.4155252387 | M24: 0.2378171896 | N24: 0.08300136426 | O24: 0.03525238745 | P24: 0.005156889495
A25: Totals | B25: =SUM(B15:B24) -> 12759 | C25: =SUM(C15:C24) -> 29132 | D25: 39741 | E25: 18264 | F25: 14059 | G25: =SUM(G15:G24) -> 2550 | H25: 196 | I25: =SUM(I15:I24) -> 116701 | K25: 0.1093306827 | L25: 0.2496293948 | M25: 0.3405369277 | N25: 0.156502515 | O25: 0.1204702616 | P25: 0.0218507125
J26: Target: | K26: 0.08 | L26: 0.2 | M26: 0.32 | N26: 0.2 | O26: 0.18 | P26: 0.02
A27: =A15&"* | "&B15&" | "&C15&" | "&D15&" | "&E15&" | "&F15&" | "&G15 -> 1* | 403 | 756 | 3510 | 2906 | 3697 | 647 | K27: =A15&"* | "&ROUNDDOWN(K15,4)*100&"% | "&ROUNDDOWN(L15,4)*100&"% | "&ROUNDDOWN(M15,4)*100&"% | "&ROUNDDOWN(N15,4)*100&"% | "&ROUNDDOWN(O15,4)*100&"% | "&ROUNDDOWN(P15,4)*100&"%" -> 1* | 3.32% | 6.24% | 28.97% | 23.98% | 30.51% | 5.34%
A28: =A16&" | "&B16&" | "&C16&" | "&D16&" | "&E16&" | "&F16&" | "&G16 -> 2 | 187 | 291 | 1474 | 1061 | 1111 | 204 | K28: =A16&" | "&ROUNDDOWN(K16,4)*100&"% | "&ROUNDDOWN(L16,4)*100&"% | "&ROUNDDOWN(M16,4)*100&"% | "&ROUNDDOWN(N16,4)*100&"% | "&ROUNDDOWN(O16,4)*100&"% | "&ROUNDDOWN(P16,4)*100&"%" -> 2 | 4.32% | 6.72% | 34.05% | 24.51% | 25.67% | 4.71%
A29: 3 | 151 | 302 | 1433 | 1134 | 982 | 147 | K29: 3 | 3.63% | 7.27% | 34.53% | 27.33% | 23.66% | 3.54%
A30: 4 | 139 | 369 | 1634 | 1076 | 987 | 208 | K30: 4 | 3.14% | 8.36% | 37.02% | 24.38% | 22.36% | 4.71%
A31: 5 | 223 | 447 | 1957 | 1300 | 1029 | 195 | K31: 5 | 4.32% | 8.67% | 37.99% | 25.23% | 19.97% | 3.78%
A32: 6 | 241 | 706 | 2728 | 1531 | 1091 | 244 | K32: 6 | 3.68% | 10.79% | 41.7% | 23.4% | 16.67% | 3.73%
A33: 7 | 344 | 1163 | 3740 | 1681 | 1229 | 225 | K33: 7 | 4.1% | 13.87% | 44.61% | 20.05% | 14.66% | 2.68%
A34: 8 | 713 | 2556 | 5628 | 1871 | 1106 | 261 | K34: 8 | 5.87% | 21.06% | 46.37% | 15.41% | 9.11% | 2.15%
A35: 9 | 2176 | 7313 | 8921 | 2662 | 1535 | 230 | K35: =A23&" | "&ROUNDDOWN(K23,4)*100&"% | "&ROUNDDOWN(L23,4)*100&"% | "&ROUNDDOWN(M23,4)*100&"% | "&ROUNDDOWN(N23,4)*100&"% | "&ROUNDDOWN(O23,4)*100&"% | "&ROUNDDOWN(P23,4)*100&"%" -> 9 | 9.52% | 32.02% | 39.06% | 11.65% | 6.72% | 1%
A36: =A24&"** | "&B24&" | "&C24&" | "&D24&" | "&E24&" | "&F24&" | "&G24 -> 10** | 8182 | 15229 | 8716 | 3042 | 1292 | 189 | K36: =A24&"** | "&ROUNDDOWN(K24,4)*100&"% | "&ROUNDDOWN(L24,4)*100&"% | "&ROUNDDOWN(M24,4)*100&"% | "&ROUNDDOWN(N24,4)*100&"% | "&ROUNDDOWN(O24,4)*100&"% | "&ROUNDDOWN(P24,4)*100&"%" -> 10** | 22.32% | 41.55% | 23.78% | 8.3% | 3.52% | 0.51%
A38: For reddit
A40: Continuing the same idea from [this reddit post](http://www.reddit.com/r/starcraft/comments/286ugt/na_battlenet_player_activity_analysis_based_on/) and this [TL post](http://www.teamliquid.net/forum/viewpost.php?post_id=22353807)
A42: I grabbed all the remaining bonus pool values for 116 | B42: 387 players ([using the EU player list from nios.kr](http://nios.kr/sc2/eu/1v1/hots/1)). These are just for 1v1 ladder.
A44: The program to do this was written in .NET | B44: [source code here](http://19hz.info/Starcraft/SC2RanksParser/SC2RanksParser/SC2RanksParser.vb).
A46: Overview:
A48: I use bonus pool to track player activity. Since bonus pool constantly accumulates for all ladder players | B48: a rough estimate of player activity would be: if your bonus pool is high | C48: you are less active than if your bonus pool is low.
A50: Every week Bronze-Diamond league players get 104.4 bonus pool points | B50: and Master/GM players get 180 points.
A52: Using [Excalibur_Z's method of "bonus pool weeks remaining"](http://www.teamliquid.net/forum/starcraft-2/423477-ladder-analysis-activity-metric) | B52: these are the results:
A54: Raw numbers
A56: Weeks Remaining | Bronze | Silver | Gold | Platinum | Diamond | Master | Totals
A57: |:--:|:--:|:--:|:--:|:--:|:--:|:--:|:--:|
A58: 1* | 403 | 756 | 3510 | 2906 | 3697 | 647
A59: 2 | 187 | 291 | 1474 | 1061 | 1111 | 204
A60: 3 | 151 | 302 | 1433 | 1134 | 982 | 147
A61: 4 | 139 | 369 | 1634 | 1076 | 987 | 207
A62: 5 | 223 | 447 | 1957 | 1300 | 1029 | 194
A63: 6 | 241 | 706 | 2728 | 1531 | 1091 | 244
A64: 7 | 344 | 1163 | 3740 | 1681 | 1229 | 211
A65: 8 | 713 | 2556 | 5628 | 1871 | 1106 | 182
A66: 9 | 2176 | 7313 | 8921 | 2662 | 1535 | 11
A67: 10** | 8182 | 15229 | 8716 | 3042 | 1292 | 189
A70: % Distributions
A72: Weeks Remaining | Bronze | Silver | Gold | Platinum | Diamond | Master | Totals
A73: |:--:|:--:|:--:|:--:|:--:|:--:|:--:|:--:|
A74: 1* | 3.32% | 6.24% | 28.97% | 23.98% | 30.51% | 5.34%
A75: 2 | 4.32% | 6.72% | 34.05% | 24.51% | 25.67% | 4.71%
A76: 3 | 3.63% | 7.27% | 34.53% | 27.33% | 23.66% | 3.54%
A77: 4 | 3.15% | 8.36% | 37.03% | 24.38% | 22.37% | 4.69%
A78: 5 | 4.33% | 8.67% | 38% | 25.24% | 19.98% | 3.76%
A79: 6 | 3.68% | 10.79% | 41.7% | 23.4% | 16.67% | 3.73%
A80: 7 | 4.11% | 13.89% | 44.69% | 20.08% | 14.68% | 2.52%
A81: 8 | 5.91% | 21.2% | 46.68% | 15.51% | 9.17% | 1.5%
A82: 9 | 9.62% | 32.33% | 39.44% | 11.76% | 6.78% | 0.04%
A83: 10** | 22.32% | 41.55% | 23.78% | 8.3% | 3.52% | 0.51%
A86: *104.4 or less bonus pool remaining | B86: 180 or less for Master
A88: **940 or more bonus pool remaining | B88: 1620 or more for Master
A90: Blizzard's target distributions are: 8% | 20% | 32% | 20% | 18% | 2%
A92: Analysis:
A94: http://19hz.info/Starcraft/2014-06-17-EU_Chart.jpg
A96: The smaller the "Weeks Remaining | B96: the more active" a player can be considered.
A98: There are about 12 | B98: 000 "super-active" players - people that are probably playing 7+ games a week. (estimating this based on your bonus pool changing by about 20 every time you win or lose).
A100: There might be about 30 | B100: 000 "semi-active" players - people that play 3+ games a week.
A102: About half the total player count has played less than 15 games total.
A104: Overall | B104: one could argue that for "active" players | C104: Bronze and Silver leagues are actually undersized | D104: Gold and Platinum leagues are relatively close to their target sizes | E104: and Diamond and Master leagues are inflated.
A106: Caveats - Blizzard may also take into account "most recent activity" to determine their distributions. A player that just started playing games in the past week would still have a relatively high bonus pool.
A108: Raw data is here: http://19hz.info/Starcraft/EU%20Battle%20Net%20Bonus%20Pool.xlsm
A110: Please let me know if you see any issues with the data/analysis. I'm running this program for Korea and I might start doing this on a weekly basis for the 3 primary servers (Americas/EU/KR). I could also mod the program to run it for team games but it would be a lot more complicated and probably take 2 or 3 times as long because each "team" gets its own bonus pool | B110: so some players that play on multiple teams will have 4+ bonus pools.

Sheet Bronze
A1: Burner | B1: 787 | C1: 8
A2: SnipeSE | B2: 798 | C2: 8
A3: CusToM | B3: 969 | C3: 10
A4: riordan | B4: 189 | C4: 2
A5: taaster | B5: 802 | C5: 8
A6: XxSSJMESSIxX | B6: 973 | C6: 10
A7: avakandi | B7: 354 | C7: 4
A8: Kingjin | B8: 974 | C8: 10
A9: Hijai | B9: 975 | C9: 10
A10: JimPanse | B10: 976 | C10: 10
A11: EKSIL | B11: 976 | C11: 10
A12: baryabarya | B12: 912 | C12: 9
A13: Greg | B13: 976 | C13: 10
A14: Yoghy | B14: 828 | C14: 8
A15: Bruppasuper | B15: 909 | C15: 9
A16: murderdolls | B16: 538 | C16: 6
A17: ZhuTou | B17: 928 | C17: 9
A18: keslor | B18: 410 | C18: 4
A19: Morpeh | B19: 978 | C19: 10
A20: Dog | B20: 979 | C20: 10
A21: Existance | B21: 930 | C21: 9
A22: Templer | B22: 948 | C22: 10
A23: Mathieu | B23: 573 | C23: 6
A24: XTrEscXy | B24: 942 | C24: 10
A25: Drills | B25: 1 | C25: 1
A26: SpiderMouse | B26: 18 | C26: 1
A27: PREDATOR | B27: 23 | C27: 1
A28: Byaku | B28: 19 | C28: 1
A29: Amens | B29: 30 | C29: 1
A30: bTN | B30: 13 | C30: 1
A31: SerialKinder | B31: 28 | C31: 1
A32: RoshMC | B32: 21 | C32: 1
A33: Jester | B33: 15 | C33: 1
A34: Tane | B34: 9 | C34: 1
A35: Mentor | B35: 5 | C35: 1
A36: venz | B36: 1 | C36: 1
A37: Zergeni | B37: 31 | C37: 1
A38: Raiden | B38: 29 | C38: 1
A39: Needled | B39: 39 | C39: 1
A40: Rémy | B40: 10 | C40: 1
A41: Corleone | B41: 20 | C41: 1
A42: Kamikenny | B42: 22 | C42: 1
A43: PLAZOLMAN | B43: 0 | C43: 1
A44: Victorius | B44: 20 | C44: 1
A45: zajebioza | B45: 0 | C45: 1
A46: Archys | B46: 2 | C46: 1
A47: maitrewizard | B47: 16 | C47: 1
A48: Raul | B48: 63 | C48: 1
A49: Zaxery | B49: 58 | C49: 1
A50: AllisLie | B50: 191 | C50: 2
A51: cheguevarra | B51: 11 | C51: 1
A52: Melkior | B52: 5 | C52: 1
A53: ElmO | B53: 63 | C53: 1
A54: takz | B54: 17 | C54: 1
A55: AxyO | B55: 14 | C55: 1
A56: Woven | B56: 31 | C56: 1
A57: soer | B57: 936 | C57: 9
A58: Gwenny | B58: 17 | C58: 1
A59: Manetheren | B59: 1 | C59: 1
A60: ellria | B60: 14 | C60: 1
A61: Jaxx | B61: 2 | C61: 1
A62: PhiLKrÖtE | B62: 31 | C62: 1
A63: datira | B63: 31 | C63: 1
A64: Shark | B64: 14 | C64: 1
A65: TBear | B65: 1 | C65: 1
A66: MajorTom | B66: 33 | C66: 1
A67: nockbcn | B67: 2 | C67: 1
A68: DanitaPeru | B68: 56 | C68: 1
A69: Matze | B69: 0 | C69: 1
A70: Kalaxu | B70: 41 | C70: 1
A71: frede | B71: 0 | C71: 1
A72: Skaegget | B72: 15 | C72: 1
A73: SIRJOSEP | B73: 0 | C73: 1
A74: TheSwarm | B74: 0 | C74: 1
A75: Kabir | B75: 14 | C75: 1
A76: Mavie | B76: 19 | C76: 1
A77: Icedeluxe | B77: 14 | C77: 1
A78: Arty | B78: 30 | C78: 1
A79: yaRRak | B79: 19 | C79: 1
A80: Kyle | B80: 49 | C80: 1
A81: felix | B81: 6 | C81: 1
A82: XtremGaga | B82: 43 | C82: 1
A83: HoRuS | B83: 12 | C83: 1
A84: Dikken | B84: 29 | C84: 1
A85: Ogranichitel | B85: 48 | C85: 1
A86: Deadrabbit | B86: 15 | C86: 1
A87: Slo | B87: 2 | C87: 1
A88: PedroNinou | B88: 47 | C88: 1
A89: Smokijo | B89: 15 | C89: 1
A90: LuzionDoesSC | B90: 0 | C90: 1
A91: Ivan | B91: 13 | C91: 1
A92: GRINDER | B92: 19 | C92: 1
A93: Sava | B93: 12 | C93: 1
A94: Iceman | B94: 2 | C94: 1
A95: David | B95: 14 | C95: 1
A96: Menyét | B96: 4 | C96: 1
A97: attila | B97: 32 | C97: 1
A98: Kishkash | B98: 6 | C98: 1
A99: Juul | B99: 14 | C99: 1
A100: Grismar | B100: 20 | C100: 1
A101: KuBikRuBik | B101: 2 | C101: 1
A102: XxLANCIENxX | B102: 1 | C102: 1
A103: AuraVoid | B103: 1 | C103: 1
A104: LizStir | B104: 16 | C104: 1
A105: Парамон | B105: 26 | C105: 1
A106: bloss | B106: 1 | C106: 1
A107: ROCA | B107: 14 | C107: 1
A108: serpanv | B108: 0 | C108: 1
A109: TaelcK | B109: 32 | C109: 1
A110: jajcogniot | B110: 25 | C110: 1
A111: Brainstorm | B111: 2 | C111: 1
A112: MrMomo | B112: 39 | C112: 1
A113: Foldike | B113: 1 | C113: 1
A114: avv | B114: 15 | C114: 1
A115: elTiM | B115: 33 | C115: 1
A116: iceman | B116: 47 | C116: 1
A117: Electrique | B117: 16 | C117: 1
A118: Kein | B118: 89 | C118: 1
A119: Villan | B119: 12 | C119: 1
A120: jelczan | B120: 17 | C120: 1
A121: aspide | B121: 20 | C121: 1
A122: Luis | B122: 9 | C122: 1
A123: BADBOY | B123: 4 | C123: 1
A124: Scifen | B124: 48 | C124: 1
A125: Vital | B125: 1 | C125: 1
A126: Knipser | B126: 4 | C126: 1
A127: magisterf | B127: 30 | C127: 1
A128: Beeboy | B128: 1 | C128: 1
A129: pAN | B129: 6 | C129: 1
A130: Zeus | B130: 17 | C130: 1
A131: guustheking | B131: 2 | C131: 1
A132: zanzasama | B132: 62 | C132: 1
A133: rebelde | B133: 0 | C133: 1
A134: drLeon | B134: 81 | C134: 1
A135: kolasa | B135: 28 | C135: 1
A136: teatime | B136: 16 | C136: 1
A137: Skeeve | B137: 13 | C137: 1
A138: SeanKayos | B138: 2 | C138: 1
A139: ketch | B139: 31 | C139: 1
A140: malutki | B140: 15 | C140: 1
A141: xXReaperXx | B141: 1 | C141: 1
A142: Dmoner | B142: 13 | C142: 1
A143: Morfeusz | B143: 22 | C143: 1
A144: CriPlayer | B144: 0 | C144: 1
A145: Megatron | B145: 27 | C145: 1
A146: StormraideR | B146: 50 | C146: 1
A147: Overrider | B147: 78 | C147: 1
A148: Murzilkin | B148: 13 | C148: 1
A149: Highlandcrow | B149: 27 | C149: 1
A150: Pronzy | B150: 14 | C150: 1
A151: Hanniball | B151: 0 | C151: 1
A152: Pynku | B152: 27 | C152: 1
A153: Sicarius | B153: 4 | C153: 1
A154: Decklink | B154: 3 | C154: 1
A155: Cayenneibis | B155: 16 | C155: 1
A156: FENIX | B156: 7 | C156: 1
A157: AlrikRA | B157: 46 | C157: 1
A158: redPL | B158: 31 | C158: 1
A159: HanSolo | B159: 31 | C159: 1
A160: luxferet | B160: 38 | C160: 1
A161: neiji | B161: 15 | C161: 1
A162: Frolik | B162: 93 | C162: 1
A163: rux | B163: 3 | C163: 1
A164: Cicero | B164: 2 | C164: 1
A165: sacha | B165: 45 | C165: 1
A166: Fumihiko | B166: 6 | C166: 1
A167: ТОР | B167: 35 | C167: 1
A168: Drakkar | B168: 41 | C168: 1
A169: loserdad | B169: 39 | C169: 1
A170: PANCONBOLO | B170: 56 | C170: 1
A171: mppower | B171: 2 | C171: 1
A172: WTotoro | B172: 12 | C172: 1
A173: Will | B173: 15 | C173: 1
A174: Tinécureuil | B174: 31 | C174: 1
A175: Goblin | B175: 53 | C175: 1
A176: smog | B176: 127 | C176: 2
A177: xarisghost | B177: 4 | C177: 1
A178: Sollas | B178: 15 | C178: 1
A179: Reggie | B179: 16 | C179: 1
A180: Saigal | B180: 42 | C180: 1
A181: Márkó | B181: 0 | C181: 1
A182: Kaktus | B182: 105 | C182: 2
A183: Pavel | B183: 981 | C183: 10
A184: SirUn | B184: 21 | C184: 1
A185: Nayokin | B185: 3 | C185: 1
A186: marshallaw | B186: 22 | C186: 1
A187: sylar | B187: 1 | C187: 1
A188: MrPerez | B188: 9 | C188: 1
A189: Dimitiv | B189: 87 | C189: 1
A190: FERCAN | B190: 1 | C190: 1
A191: Ohiga | B191: 5 | C191: 1
A192: Fritz | B192: 56 | C192: 1
A193: SpeedyFrog | B193: 79 | C193: 1
A194: sombra | B194: 0 | C194: 1
A195: EAGLEASIUS | B195: 33 | C195: 1
A196: Tomahawk | B196: 55 | C196: 1
A197: Viktor | B197: 1 | C197: 1
A198: guigui | B198: 76 | C198: 1
A199: Alex | B199: 14 | C199: 1
A200: PopCorn | B200: 30 | C200: 1
... 12559 more rows

Sheet Silver
A1: iDenis | B1: 642 | C1: 7
A2: Kiochan | B2: 645 | C2: 7
A3: Frankzz | B3: 496 | C3: 5
A4: Aero | B4: 926 | C4: 9
A5: Kodo | B5: 939 | C5: 9
A6: Pol | B6: 969 | C6: 10
A7: Matik | B7: 949 | C7: 10
A8: beNj | B8: 812 | C8: 8
A9: Thor | B9: 970 | C9: 10
A10: Logout | B10: 970 | C10: 10
A11: greengrass | B11: 882 | C11: 9
A12: AwiqzR | B12: 924 | C12: 9
A13: czeFish | B13: 972 | C13: 10
A14: billYgoAt | B14: 551 | C14: 6
A15: FreshMeat | B15: 552 | C15: 6
A16: ame | B16: 974 | C16: 10
A17: ame | B17: 974 | C17: 10
A18: MagiC | B18: 863 | C18: 9
A19: Caboose | B19: 649 | C19: 7
A20: flexay | B20: 959 | C20: 10
A21: Marshall | B21: 974 | C21: 10
A22: Sabre | B22: 975 | C22: 10
A23: bAbYMoLD | B23: 975 | C23: 10
A24: thegenesis | B24: 25 | C24: 1
A25: Achillis | B25: 37 | C25: 1
A26: krek | B26: 1 | C26: 1
A27: piramida | B27: 5 | C27: 1
A28: cromm | B28: 13 | C28: 1
A29: GORBATJOV | B29: 26 | C29: 1
A30: Serron | B30: 13 | C30: 1
A31: Merk | B31: 9 | C31: 1
A32: Heisenberg | B32: 10 | C32: 1
A33: ArsMoriendi | B33: 21 | C33: 1
A34: Scuderia | B34: 9 | C34: 1
A35: Watchthis | B35: 24 | C35: 1
A36: Alex | B36: 2 | C36: 1
A37: Plasky | B37: 70 | C37: 1
A38: Infinity | B38: 29 | C38: 1
A39: Samosel | B39: 42 | C39: 1
A40: ChilSurg | B40: 11 | C40: 1
A41: Disturbedguy | B41: 28 | C41: 1
A42: Jim | B42: 7 | C42: 1
A43: VICTORYpark | B43: 7 | C43: 1
A44: Hexer | B44: 37 | C44: 1
A45: kamillos | B45: 30 | C45: 1
A46: ToRa | B46: 25 | C46: 1
A47: Unique | B47: 8 | C47: 1
A48: lirius | B48: 43 | C48: 1
A49: calahan | B49: 9 | C49: 1
A50: Achilles | B50: 29 | C50: 1
A51: SINIGAMI | B51: 27 | C51: 1
A52: bloodstar | B52: 15 | C52: 1
A53: heron | B53: 29 | C53: 1
A54: IMKOR | B54: 628 | C54: 7
A55: Nikolay | B55: 27 | C55: 1
A56: Varack | B56: 11 | C56: 1
A57: Eidexe | B57: 1 | C57: 1
A58: LibertyWings | B58: 19 | C58: 1
A59: Zverius | B59: 15 | C59: 1
A60: Deran | B60: 1 | C60: 1
A61: Spacius | B61: 24 | C61: 1
A62: Chris | B62: 12 | C62: 1
A63: Dragon | B63: 28 | C63: 1
A64: Enjy | B64: 44 | C64: 1
A65: Swern | B65: 9 | C65: 1
A66: Suomy | B66: 8 | C66: 1
A67: EatMyShorts | B67: 40 | C67: 1
A68: Vorenus | B68: 17 | C68: 1
A69: Balduvian | B69: 28 | C69: 1
A70: StarHunter | B70: 10 | C70: 1
A71: TAKO | B71: 10 | C71: 1
A72: luffy | B72: 20 | C72: 1
A73: ISwarm | B73: 12 | C73: 1
A74: Homerekka | B74: 26 | C74: 1
A75: MyMarine | B75: 40 | C75: 1
A76: DanNov | B76: 10 | C76: 1
A77: ISwarm | B77: 12 | C77: 1
A78: Homerekka | B78: 26 | C78: 1
A79: MyMarine | B79: 40 | C79: 1
A80: DanNov | B80: 10 | C80: 1
A81: Dehaka | B81: 9 | C81: 1
A82: Kalio | B82: 12 | C82: 1
A83: Zeitgeist | B83: 12 | C83: 1
A84: Asassyn | B84: 38 | C84: 1
A85: SiberianOwls | B85: 3 | C85: 1
A86: Kylar | B86: 38 | C86: 1
A87: JohnDoe | B87: 9 | C87: 1
A88: Slayer | B88: 27 | C88: 1
A89: Valmanway | B89: 15 | C89: 1
A90: Alex | B90: 7 | C90: 1
A91: moritz | B91: 52 | C91: 1
A92: sorc | B92: 9 | C92: 1
A93: LdHeart | B93: 27 | C93: 1
A94: ChocMoS | B94: 8 | C94: 1
A95: SpeedVault | B95: 33 | C95: 1
A96: Alexstrasza | B96: 21 | C96: 1
A97: DarkMorphPT | B97: 36 | C97: 1
A98: HefeWeizen | B98: 23 | C98: 1
A99: Night | B99: 31 | C99: 1
A100: lasu | B100: 10 | C100: 1
A101: Kjelt | B101: 9 | C101: 1
A102: Darius | B102: 31 | C102: 1
A103: Akadès | B103: 46 | C103: 1
A104: Loop | B104: 7 | C104: 1
A105: Banshee | B105: 15 | C105: 1
A106: Garwin | B106: 53 | C106: 1
A107: speedemon | B107: 29 | C107: 1
A108: Lotus | B108: 38 | C108: 1
A109: Bleed | B109: 10 | C109: 1
A110: ASKER | B110: 1 | C110: 1
A111: macros | B111: 31 | C111: 1
A112: ironguy | B112: 12 | C112: 1
A113: denis | B113: 59 | C113: 1
A114: Ludo | B114: 8 | C114: 1
A115: GUTSOUT | B115: 20 | C115: 1
A116: hombree | B116: 8 | C116: 1
A117: nizzotchqq | B117: 6 | C117: 1
A118: Lightning | B118: 1 | C118: 1
A119: choopy | B119: 129 | C119: 2
A120: alico | B120: 1 | C120: 1
A121: Clay | B121: 76 | C121: 1
A122: Sailorman | B122: 27 | C122: 1
A123: PakAir | B123: 9 | C123: 1
A124: Xinteta | B124: 11 | C124: 1
A125: Crog | B125: 22 | C125: 1
A126: hiroes | B126: 1 | C126: 1
A127: IronTerran | B127: 14 | C127: 1
A128: Bargon | B128: 40 | C128: 1
A129: jaha | B129: 8 | C129: 1
A130: BIOJAYX | B130: 29 | C130: 1
A131: Boneguard | B131: 34 | C131: 1
A132: Shackleton | B132: 8 | C132: 1
A133: koben | B133: 8 | C133: 1
A134: Wimbo | B134: 12 | C134: 1
A135: MarkiManki | B135: 9 | C135: 1
A136: Karasu | B136: 38 | C136: 1
A137: Moee | B137: 36 | C137: 1
A138: ernoke | B138: 24 | C138: 1
A139: KillaCraft | B139: 53 | C139: 1
A140: Mitraille | B140: 24 | C140: 1
A141: PapinoPL | B141: 30 | C141: 1
A142: Nono | B142: 8 | C142: 1
A143: KennySonic | B143: 13 | C143: 1
A144: goewolf | B144: 16 | C144: 1
A145: Sganzo | B145: 29 | C145: 1
A146: Juli | B146: 26 | C146: 1
A147: Goldfist | B147: 51 | C147: 1
A148: Сублиматор | B148: 26 | C148: 1
A149: Jenish | B149: 40 | C149: 1
A150: HURRICAN | B150: 46 | C150: 1
A151: Xavras | B151: 25 | C151: 1
A152: Eliran | B152: 12 | C152: 1
A153: Needham | B153: 2 | C153: 1
A154: CeaseR | B154: 9 | C154: 1
A155: Alpha | B155: 20 | C155: 1
A156: Brzkey | B156: 9 | C156: 1
A157: TomJ | B157: 7 | C157: 1
A158: cugar | B158: 1 | C158: 1
A159: gautier | B159: 35 | C159: 1
A160: ZeBars | B160: 67 | C160: 1
A161: lepidopterus | B161: 8 | C161: 1
A162: BLK | B162: 30 | C162: 1
A163: Grid | B163: 70 | C163: 1
A164: Cthulhu | B164: 26 | C164: 1
A165: eduard | B165: 46 | C165: 1
A166: BlueStep | B166: 23 | C166: 1
A167: Paganwitch | B167: 7 | C167: 1
A168: Nubyara | B168: 23 | C168: 1
A169: driss | B169: 26 | C169: 1
A170: Daigoro | B170: 24 | C170: 1
A171: ZdiCZE | B171: 92 | C171: 1
A172: Mothgod | B172: 1 | C172: 1
A173: BorisThBlade | B173: 12 | C173: 1
A174: RubberDuck | B174: 7 | C174: 1
A175: dexter | B175: 38 | C175: 1
A176: Arkos | B176: 32 | C176: 1
A177: Titoune | B177: 19 | C177: 1
A178: Faust | B178: 6 | C178: 1
A179: EponA | B179: 9 | C179: 1
A180: cCFamOusCc | B180: 73 | C180: 1
A181: Becar | B181: 23 | C181: 1
A182: HappyNujugi | B182: 35 | C182: 1
A183: Derbki | B183: 18 | C183: 1
A184: Kirill | B184: 12 | C184: 1
A185: RAY | B185: 44 | C185: 1
A186: Rön | B186: 13 | C186: 1
A187: MACK | B187: 4 | C187: 1
A188: xXMyFeLXx | B188: 43 | C188: 1
A189: LeGenDTeRRa | B189: 27 | C189: 1
A190: mindCraft | B190: 10 | C190: 1
A191: Franzon | B191: 9 | C191: 1
A192: WHAKI | B192: 12 | C192: 1
A193: etpkpas | B193: 12 | C193: 1
A194: Houdini | B194: 26 | C194: 1
A195: Oldie | B195: 26 | C195: 1
A196: korbinian | B196: 31 | C196: 1
A197: Hearalgar | B197: 43 | C197: 1
A198: MrsWolf | B198: 10 | C198: 1
A199: kbame | B199: 12 | C199: 1
A200: Skynet | B200: 29 | C200: 1
... 28932 more rows

Sheet Gold
A1: THEWOLTERS | B1: 576 | C1: 6
A2: stoumaxx | B2: 952 | C2: 10
A3: Master | B3: 755 | C3: 8
A4: RedBull | B4: 952 | C4: 10
A5: juniorRC | B5: 14 | C5: 1
A6: dodo | B6: 5 | C6: 1
A7: dodo | B7: 5 | C7: 1
A8: NynaneveSC | B8: 26 | C8: 1
A9: Vegaa | B9: 15 | C9: 1
A10: Vermeil | B10: 19 | C10: 1
A11: Hayvan | B11: 14 | C11: 1
A12: Sharnoth | B12: 22 | C12: 1
A13: Disturbers | B13: 1 | C13: 1
A14: Coburn | B14: 0 | C14: 1
A15: LLIRIK | B15: 8 | C15: 1
A16: IIIIIIIIIIII | B16: 9 | C16: 1
A17: kaitai | B17: 21 | C17: 1
A18: Bodybuilder | B18: 18 | C18: 1
A19: Morphinewall | B19: 1 | C19: 1
A20: toks | B20: 18 | C20: 1
A21: Chad | B21: 19 | C21: 1
A22: KarlGustav | B22: 37 | C22: 1
A23: iRon | B23: 19 | C23: 1
A24: Cain | B24: 35 | C24: 1
A25: Sverok | B25: 66 | C25: 1
A26: Ntony | B26: 16 | C26: 1
A27: backslash | B27: 23 | C27: 1
A28: Links | B28: 1 | C28: 1
A29: RedPaul | B29: 1 | C29: 1
A30: SIaIZIa | B30: 2 | C30: 1
A31: StoilnOOb | B31: 17 | C31: 1
A32: McWuggleBear | B32: 3 | C32: 1
A33: BigBoy | B33: 23 | C33: 1
A34: headtrouser | B34: 17 | C34: 1
A35: BreakYaNeck | B35: 14 | C35: 1
A36: Nadapolis | B36: 1 | C36: 1
A37: bab | B37: 0 | C37: 1
A38: RedArmy | B38: 3 | C38: 1
A39: Kronemburg | B39: 41 | C39: 1
A40: TroopsOfdooM | B40: 53 | C40: 1
A41: Dandido | B41: 8 | C41: 1
A42: Milka | B42: 9 | C42: 1
A43: Rudu | B43: 18 | C43: 1
A44: Dexp | B44: 12 | C44: 1
A45: NurDerHSV | B45: 11 | C45: 1
A46: firefist | B46: 23 | C46: 1
A47: Himz | B47: 2 | C47: 1
A48: HAXHAXHAX | B48: 3 | C48: 1
A49: mister | B49: 26 | C49: 1
A50: Billy | B50: 17 | C50: 1
A51: BlackJack | B51: 1 | C51: 1
A52: Xperience | B52: 4 | C52: 1
A53: StringPunish | B53: 18 | C53: 1
A54: Protosstom | B54: 3 | C54: 1
A55: SquetIam | B55: 8 | C55: 1
A56: Exponential | B56: 0 | C56: 1
A57: DutchMaster | B57: 2 | C57: 1
A58: Azulkan | B58: 3 | C58: 1
A59: fdd | B59: 3 | C59: 1
A60: cLuMsY | B60: 33 | C60: 1
A61: CharlieFirpo | B61: 4 | C61: 1
A62: Darkswarm | B62: 20 | C62: 1
A63: Songless | B63: 3 | C63: 1
A64: SZMIEL | B64: 1 | C64: 1
A65: Kyras | B65: 2 | C65: 1
A66: SubfocusII | B66: 17 | C66: 1
A67: Pintiboy | B67: 0 | C67: 1
A68: Sasuke | B68: 4 | C68: 1
A69: dan | B69: 16 | C69: 1
A70: REGITA | B70: 16 | C70: 1
A71: booty | B71: 9 | C71: 1
A72: GevatterTod | B72: 73 | C72: 1
A73: Vuros | B73: 2 | C73: 1
A74: Edpayasugo | B74: 17 | C74: 1
A75: Shaka | B75: 0 | C75: 1
A76: NightKnight | B76: 2 | C76: 1
A77: beachtonio | B77: 22 | C77: 1
A78: DeathMate | B78: 12 | C78: 1
A79: Humma | B79: 7 | C79: 1
A80: Latex | B80: 4 | C80: 1
A81: NinjaStlzzz | B81: 2 | C81: 1
A82: Adoru | B82: 1 | C82: 1
A83: Errkerrkea | B83: 31 | C83: 1
A84: JIRO | B84: 2 | C84: 1
A85: AlexTheGreat | B85: 20 | C85: 1
A86: Moostick | B86: 33 | C86: 1
A87: Silence | B87: 5 | C87: 1
A88: Knackbanane | B88: 6 | C88: 1
A89: yamamotsu | B89: 21 | C89: 1
A90: Pikachu | B90: 36 | C90: 1
A91: DaanZka | B91: 58 | C91: 1
A92: EarlGrey | B92: 7 | C92: 1
A93: Reaver | B93: 28 | C93: 1
A94: Mekonium | B94: 0 | C94: 1
A95: elena | B95: 43 | C95: 1
A96: Blisken | B96: 12 | C96: 1
A97: jeremieleroy | B97: 3 | C97: 1
A98: idd | B98: 1 | C98: 1
A99: Pirobal | B99: 3 | C99: 1
A100: freetomfr | B100: 53 | C100: 1
A101: KillhaBee | B101: 15 | C101: 1
A102: Druhgs | B102: 83 | C102: 1
A103: Furiath | B103: 6 | C103: 1
A104: Killbone | B104: 24 | C104: 1
A105: David | B105: 31 | C105: 1
A106: smiremorque | B106: 1 | C106: 1
A107: Tebis | B107: 1 | C107: 1
A108: Mudrock | B108: 14 | C108: 1
A109: Bobies | B109: 4 | C109: 1
A110: Sharraz | B110: 18 | C110: 1
A111: guacamole | B111: 0 | C111: 1
A112: Хуанито | B112: 15 | C112: 1
A113: Whitenight | B113: 25 | C113: 1
A114: SteelRat | B114: 57 | C114: 1
A115: GoldenBoy | B115: 25 | C115: 1
A116: Vegetto | B116: 4 | C116: 1
A117: Machete | B117: 22 | C117: 1
A118: Kárrn | B118: 47 | C118: 1
A119: MbUItchey | B119: 75 | C119: 1
A120: CKounette | B120: 65 | C120: 1
A121: DlckTheQuick | B121: 37 | C121: 1
A122: Andriņa | B122: 15 | C122: 1
A123: Rez | B123: 15 | C123: 1
A124: DrBääähm | B124: 32 | C124: 1
A125: PoLiteMoose | B125: 77 | C125: 1
A126: DanyOcean | B126: 0 | C126: 1
A127: Dagumpf | B127: 16 | C127: 1
A128: DenielColt | B128: 30 | C128: 1
A129: Xeratul | B129: 1 | C129: 1
A130: JackSparroW | B130: 1 | C130: 1
A131: DarkVengence | B131: 19 | C131: 1
A132: Gauz | B132: 13 | C132: 1
A133: Asurbanipal | B133: 18 | C133: 1
A134: Cobra | B134: 2 | C134: 1
A135: Flowtorch | B135: 7 | C135: 1
A136: Assassa | B136: 968 | C136: 10
A137: ForceDMA | B137: 5 | C137: 1
A138: ArchyDevil | B138: 61 | C138: 1
A139: Illuminati | B139: 29 | C139: 1
A140: SpaceBonhart | B140: 2 | C140: 1
A141: PriestKOD | B141: 6 | C141: 1
A142: SpecyfiK | B142: 16 | C142: 1
A143: nulak | B143: 29 | C143: 1
A144: Volchok | B144: 0 | C144: 1
A145: Hmpf | B145: 0 | C145: 1
A146: Knochen | B146: 13 | C146: 1
A147: data | B147: 16 | C147: 1
A148: VieuxGildas | B148: 49 | C148: 1
A149: sgemodd | B149: 13 | C149: 1
A150: Limonov | B150: 1 | C150: 1
A151: Xenorfe | B151: 42 | C151: 1
A152: Gaspadar | B152: 17 | C152: 1
A153: Nothing | B153: 57 | C153: 1
A154: Viktor | B154: 17 | C154: 1
A155: PLOEGI | B155: 39 | C155: 1
A156: GTYovkov | B156: 8 | C156: 1
A157: KarateMonkey | B157: 55 | C157: 1
A158: Greedy | B158: 31 | C158: 1
A159: Akio | B159: 32 | C159: 1
A160: SkySkan | B160: 1 | C160: 1
A161: flex | B161: 17 | C161: 1
A162: Ghabryel | B162: 18 | C162: 1
A163: KuyaJay | B163: 2 | C163: 1
A164: MrLacan | B164: 32 | C164: 1
A165: ggg | B165: 28 | C165: 1
A166: Fenrir | B166: 1 | C166: 1
A167: Loony | B167: 7 | C167: 1
A168: Has | B168: 26 | C168: 1
A169: boromir | B169: 17 | C169: 1
A170: ElGrande | B170: 53 | C170: 1
A171: Fränberra | B171: 4 | C171: 1
A172: MesRaS | B172: 17 | C172: 1
A173: Afura | B173: 1 | C173: 1
A174: Havoc | B174: 2 | C174: 1
A175: Crazyrain | B175: 48 | C175: 1
A176: KusevL | B176: 4 | C176: 1
A177: VariOoZ | B177: 3 | C177: 1
A178: Nosivol | B178: 20 | C178: 1
A179: AppleZombie | B179: 7 | C179: 1
A180: Chaos | B180: 35 | C180: 1
A181: tzp | B181: 16 | C181: 1
A182: PREDATOR | B182: 20 | C182: 1
A183: NitroKilleur | B183: 4 | C183: 1
A184: Nagibator | B184: 4 | C184: 1
A185: Megalon | B185: 18 | C185: 1
A186: DucThanh | B186: 10 | C186: 1
A187: FouLu | B187: 60 | C187: 1
A188: Xtpw | B188: 20 | C188: 1
A189: BarrOS | B189: 29 | C189: 1
A190: TroynAbed | B190: 2 | C190: 1
A191: Blackshade | B191: 2 | C191: 1
A192: AMarineDiary | B192: 32 | C192: 1
A193: ImPuissant | B193: 91 | C193: 1
A194: Apophis | B194: 33 | C194: 1
A195: NicoooZ | B195: 17 | C195: 1
A196: WESHMAKAI | B196: 5 | C196: 1
A197: Cloud | B197: 20 | C197: 1
A198: YOUYUYOO | B198: 0 | C198: 1
A199: Idah | B199: 34 | C199: 1
A200: diGital | B200: 6 | C200: 1
... 4300 more rows

Sheet Platinum
A1: Lupetersen | B1: 12 | C1: 1
A2: mooksha | B2: 5 | C2: 1
A3: rofllocktree | B3: 7 | C3: 1
A4: ZergCleaver | B4: 14 | C4: 1
A5: Mufasa | B5: 10 | C5: 1
A6: Grim | B6: 3 | C6: 1
A7: TurokESP | B7: 0 | C7: 1
A8: AinthOX | B8: 35 | C8: 1
A9: minority | B9: 6 | C9: 1
A10: Serpif | B10: 1 | C10: 1
A11: Swarley | B11: 7 | C11: 1
A12: PODIMONISSE | B12: 4 | C12: 1
A13: Monio | B13: 11 | C13: 1
A14: Icarus | B14: 59 | C14: 1
A15: Cryo | B15: 7 | C15: 1
A16: PhoenixFire | B16: 24 | C16: 1
A17: sceid | B17: 12 | C17: 1
A18: wiNd | B18: 16 | C18: 1
A19: Rorolap | B19: 21 | C19: 1
A20: Tommy | B20: 10 | C20: 1
A21: Isaeca | B21: 11 | C21: 1
A22: Stikette | B22: 13 | C22: 1
A23: Tichy | B23: 8 | C23: 1
A24: thekm | B24: 15 | C24: 1
A25: AngelOfMech | B25: 6 | C25: 1
A26: AGgRESsOR | B26: 19 | C26: 1
A27: Wiki | B27: 18 | C27: 1
A28: Cricri | B28: 15 | C28: 1
A29: IIIIIIIIIIII | B29: 1 | C29: 1
A30: Frost | B30: 4 | C30: 1
A31: RampAge | B31: 32 | C31: 1
A32: Jenkan | B32: 11 | C32: 1
A33: Kherimon | B33: 20 | C33: 1
A34: TAREK | B34: 16 | C34: 1
A35: Pallas | B35: 13 | C35: 1
A36: Ebolat | B36: 4 | C36: 1
A37: Malus | B37: 17 | C37: 1
A38: BigBang | B38: 10 | C38: 1
A39: Gigi | B39: 20 | C39: 1
A40: Orange | B40: 8 | C40: 1
A41: TheSilence | B41: 24 | C41: 1
A42: DerFahnder | B42: 15 | C42: 1
A43: Néga | B43: 14 | C43: 1
A44: Firekin | B44: 48 | C44: 1
A45: Legobiten | B45: 47 | C45: 1
A46: bdot | B46: 21 | C46: 1
A47: JordanLT | B47: 1 | C47: 1
A48: AgLunae | B48: 12 | C48: 1
A49: ZAJLA | B49: 18 | C49: 1
A50: bionegative | B50: 27 | C50: 1
A51: NetGenius | B51: 20 | C51: 1
A52: Dwss | B52: 26 | C52: 1
A53: Kamilo | B53: 1 | C53: 1
A54: ObiWan | B54: 13 | C54: 1
A55: Makkie | B55: 3 | C55: 1
A56: Quote | B56: 16 | C56: 1
A57: WeazL | B57: 11 | C57: 1
A58: Silence | B58: 13 | C58: 1
A59: Alexswansea | B59: 2 | C59: 1
A60: Raxden | B60: 16 | C60: 1
A61: Phox | B61: 11 | C61: 1
A62: Guerrero | B62: 1 | C62: 1
A63: VavSkownor | B63: 12 | C63: 1
A64: IMDGinger | B64: 5 | C64: 1
A65: Fossa | B65: 29 | C65: 1
A66: Nerag | B66: 29 | C66: 1
A67: PolderPloer | B67: 0 | C67: 1
A68: MrKillJoy | B68: 30 | C68: 1
A69: tritomouss | B69: 14 | C69: 1
A70: MoRe | B70: 9 | C70: 1
A71: lllllllIIIIl | B71: 2 | C71: 1
A72: mKey | B72: 37 | C72: 1
A73: DrunkJew | B73: 0 | C73: 1
A74: Wazzup | B74: 3 | C74: 1
A75: Anchathar | B75: 11 | C75: 1
A76: ProxyTwoRax | B76: 9 | C76: 1
A77: niceyeal | B77: 8 | C77: 1
A78: Lideon | B78: 14 | C78: 1
A79: AstharotMM | B79: 24 | C79: 1
A80: FuJiYo | B80: 11 | C80: 1
A81: CroNo | B81: 4 | C81: 1
A82: Tbest | B82: 1 | C82: 1
A83: ApOsTaTe | B83: 28 | C83: 1
A84: Sleepy | B84: 13 | C84: 1
A85: Karwas | B85: 57 | C85: 1
A86: Cocoon | B86: 3 | C86: 1
A87: Dafuq | B87: 32 | C87: 1
A88: Levano | B88: 26 | C88: 1
A89: OmoïYosuke | B89: 8 | C89: 1
A90: PhantomLord | B90: 1 | C90: 1
A91: Themountain | B91: 3 | C91: 1
A92: Gabba | B92: 12 | C92: 1
A93: SCV | B93: 1 | C93: 1
A94: Coffee | B94: 20 | C94: 1
A95: ssvviilll | B95: 12 | C95: 1
A96: PsYker | B96: 11 | C96: 1
A97: Fefe | B97: 28 | C97: 1
A98: Kennystylle | B98: 34 | C98: 1
A99: linkthesink | B99: 48 | C99: 1
A100: Radem | B100: 14 | C100: 1
A101: Ares | B101: 30 | C101: 1
A102: thedarkT | B102: 13 | C102: 1
A103: glhf | B103: 8 | C103: 1
A104: Aureus | B104: 4 | C104: 1
A105: Mejkstar | B105: 26 | C105: 1
A106: Raptor | B106: 13 | C106: 1
A107: Aeris | B107: 10 | C107: 1
A108: Phoenix | B108: 53 | C108: 1
A109: Rathius | B109: 26 | C109: 1
A110: Ardu | B110: 2 | C110: 1
A111: Snappy | B111: 14 | C111: 1
A112: abreezy | B112: 37 | C112: 1
A113: Croc | B113: 0 | C113: 1
A114: VileXel | B114: 11 | C114: 1
A115: GookBangBoo | B115: 12 | C115: 1
A116: Dekkk | B116: 29 | C116: 1
A117: plesius | B117: 13 | C117: 1
A118: CheesoBoy | B118: 10 | C118: 1
A119: LentLord | B119: 12 | C119: 1
A120: Banana | B120: 52 | C120: 1
A121: Slade | B121: 17 | C121: 1
A122: YuMi | B122: 82 | C122: 1
A123: Mefistofel | B123: 19 | C123: 1
A124: GeneticApex | B124: 11 | C124: 1
A125: Warphoenix | B125: 12 | C125: 1
A126: Joel | B126: 7 | C126: 1
A127: NyrOne | B127: 25 | C127: 1
A128: JoinZero | B128: 32 | C128: 1
A129: Lutor | B129: 42 | C129: 1
A130: MISA | B130: 1 | C130: 1
A131: XuDFiT | B131: 32 | C131: 1
A132: Malfegor | B132: 1 | C132: 1
A133: FrankZappa | B133: 3 | C133: 1
A134: omnissiah | B134: 10 | C134: 1
A135: Terrathor | B135: 65 | C135: 1
A136: TheSwamper | B136: 18 | C136: 1
A137: Boerns | B137: 26 | C137: 1
A138: Fatboy | B138: 12 | C138: 1
A139: Poww | B139: 43 | C139: 1
A140: macfish | B140: 0 | C140: 1
A141: yondai | B141: 61 | C141: 1
A142: AcUran | B142: 26 | C142: 1
A143: Phoenician | B143: 39 | C143: 1
A144: Toaster | B144: 45 | C144: 1
A145: KnochenKotze | B145: 82 | C145: 1
A146: Kipperroff | B146: 0 | C146: 1
A147: Chlorowodór | B147: 12 | C147: 1
A148: amature | B148: 4 | C148: 1
A149: bender | B149: 32 | C149: 1
A150: Tottny | B150: 19 | C150: 1
A151: Yoda | B151: 3 | C151: 1
A152: Ksoule | B152: 86 | C152: 1
A153: MontyPylon | B153: 16 | C153: 1
A154: tboss | B154: 29 | C154: 1
A155: Yammka | B155: 0 | C155: 1
A156: Amnesia | B156: 11 | C156: 1
A157: Zak | B157: 25 | C157: 1
A158: MoGBlick | B158: 15 | C158: 1
A159: Idisram | B159: 28 | C159: 1
A160: Teva | B160: 19 | C160: 1
A161: llllllllll | B161: 15 | C161: 1
A162: Orena | B162: 11 | C162: 1
A163: Crassus | B163: 29 | C163: 1
A164: AxK | B164: 10 | C164: 1
A165: Totoro | B165: 29 | C165: 1
A166: NiMeg | B166: 43 | C166: 1
A167: ccAlive | B167: 14 | C167: 1
A168: kdoyeon | B168: 10 | C168: 1
A169: Razihell | B169: 13 | C169: 1
A170: WARRIORu | B170: 0 | C170: 1
A171: HeLLSmiTer | B171: 69 | C171: 1
A172: Henking | B172: 18 | C172: 1
A173: Affinity | B173: 2 | C173: 1
A174: Gerd | B174: 16 | C174: 1
A175: Trynitï | B175: 11 | C175: 1
A176: Infinite | B176: 0 | C176: 1
A177: Dreead | B177: 29 | C177: 1
A178: Veritas | B178: 19 | C178: 1
A179: thekiller | B179: 12 | C179: 1
A180: Ginger | B180: 8 | C180: 1
A181: ChortieShaw | B181: 1 | C181: 1
A182: RagedDevil | B182: 4 | C182: 1
A183: thorfin | B183: 27 | C183: 1
A184: DarkSky | B184: 17 | C184: 1
A185: Charquican | B185: 24 | C185: 1
A186: Insane | B186: 11 | C186: 1
A187: smu | B187: 34 | C187: 1
A188: Valicko | B188: 2 | C188: 1
A189: Infest | B189: 21 | C189: 1
A190: Theffz | B190: 13 | C190: 1
A191: garbage | B191: 2 | C191: 1
A192: Bestdot | B192: 46 | C192: 1
A193: ggwp | B193: 12 | C193: 1
A194: Zinoviy | B194: 20 | C194: 1
A195: passo | B195: 11 | C195: 1
A196: Smakiqi | B196: 1 | C196: 1
A197: Sardine | B197: 0 | C197: 1
A198: MilfParadize | B198: 12 | C198: 1
A199: BramS | B199: 40 | C199: 1
A200: Elnirath | B200: 19 | C200: 1
... 18064 more rows

Sheet Diamond
A1: Hodor | B1: 7 | C1: 1
A2: PencaGrande | B2: 22 | C2: 1
A3: Wrath | B3: 4 | C3: 1
A4: Baam | B4: 9 | C4: 1
A5: Yuri | B5: 6 | C5: 1
A6: Freeman | B6: 0 | C6: 1
A7: RauL | B7: 14 | C7: 1
A8: Đome | B8: 9 | C8: 1
A9: Neuling | B9: 9 | C9: 1
A10: GrimmieJ | B10: 8 | C10: 1
A11: Paillasson | B11: 0 | C11: 1
A12: TrAiDoS | B12: 28 | C12: 1
A13: BuzuB | B13: 0 | C13: 1
A14: BaRaGooD | B14: 12 | C14: 1
A15: ivy | B15: 9 | C15: 1
A16: MayDubay | B16: 0 | C16: 1
A17: NaWe | B17: 0 | C17: 1
A18: Panthera | B18: 44 | C18: 1
A19: Irony | B19: 9 | C19: 1
A20: Prime | B20: 13 | C20: 1
A21: METAL | B21: 36 | C21: 1
A22: AfterDark | B22: 10 | C22: 1
A23: Wordix | B23: 9 | C23: 1
A24: RuFFleS | B24: 22 | C24: 1
A25: HoRuS | B25: 15 | C25: 1
A26: IronGold | B26: 33 | C26: 1
A27: canabuz | B27: 8 | C27: 1
A28: llllllllllll | B28: 87 | C28: 1
A29: Uroba | B29: 23 | C29: 1
A30: Eäril | B30: 27 | C30: 1
A31: myuo | B31: 5 | C31: 1
A32: Gloctar | B32: 1 | C32: 1
A33: DrDragon | B33: 11 | C33: 1
A34: ToaK | B34: 30 | C34: 1
A35: Maronator | B35: 16 | C35: 1
A36: ṔrimĕZzăńĠ | B36: 9 | C36: 1
A37: Creaton | B37: 15 | C37: 1
A38: lonely | B38: 0 | C38: 1
A39: TTgl | B39: 25 | C39: 1
A40: Tom | B40: 8 | C40: 1
A41: mOOnX | B41: 37 | C41: 1
A42: Sooge | B42: 5 | C42: 1
A43: Klayd | B43: 4 | C43: 1
A44: søulspirit | B44: 15 | C44: 1
A45: Stiltskin | B45: 1 | C45: 1
A46: ElezraLucker | B46: 3 | C46: 1
A47: ChoboZerg | B47: 28 | C47: 1
A48: Thunder | B48: 13 | C48: 1
A49: Fenlkz | B49: 8 | C49: 1
A50: Kusqui | B50: 0 | C50: 1
A51: Chapel | B51: 16 | C51: 1
A52: duckboozi | B52: 2 | C52: 1
A53: Thebis | B53: 49 | C53: 1
A54: JSun | B54: 10 | C54: 1
A55: Ricelia | B55: 21 | C55: 1
A56: Longclaw | B56: 23 | C56: 1
A57: Tasemo | B57: 14 | C57: 1
A58: yukimurahhh | B58: 2 | C58: 1
A59: llllllllllll | B59: 13 | C59: 1
A60: Pisti | B60: 9 | C60: 1
A61: Dao | B61: 0 | C61: 1
A62: DonPablo | B62: 8 | C62: 1
A63: ColdBlooded | B63: 55 | C63: 1
A64: DarkKenny | B64: 55 | C64: 1
A65: IIIIIIIIIII | B65: 23 | C65: 1
A66: Vasa | B66: 4 | C66: 1
A67: NetZero | B67: 39 | C67: 1
A68: BGF | B68: 8 | C68: 1
A69: Bugsy | B69: 9 | C69: 1
A70: Marstrand | B70: 53 | C70: 1
A71: IIIIIIllllII | B71: 4 | C71: 1
A72: SoVeReiGN | B72: 24 | C72: 1
A73: Skunnigo | B73: 13 | C73: 1
A74: ShDZoo | B74: 58 | C74: 1
A75: Slider | B75: 0 | C75: 1
A76: Blue | B76: 113 | C76: 2
A77: MrJNano | B77: 52 | C77: 1
A78: HellAlbY | B78: 24 | C78: 1
A79: Shini | B79: 8 | C79: 1
A80: ToZiS | B80: 14 | C80: 1
A81: Mamut | B81: 0 | C81: 1
A82: AurorA | B82: 8 | C82: 1
A83: YgO | B83: 10 | C83: 1
A84: ZertoN | B84: 23 | C84: 1
A85: CookEMonster | B85: 18 | C85: 1
A86: KillInHeaven | B86: 57 | C86: 1
A87: Gaspi | B87: 13 | C87: 1
A88: TTGuru | B88: 27 | C88: 1
A89: IrishLad | B89: 2 | C89: 1
A90: brrritscold | B90: 85 | C90: 1
A91: llllllllllll | B91: 35 | C91: 1
A92: Greddy | B92: 13 | C92: 1
A93: Oystein | B93: 6 | C93: 1
A94: IIIIIIIIIIII | B94: 120 | C94: 2
A95: Cavadrec | B95: 13 | C95: 1
A96: ThatIrishGuy | B96: 62 | C96: 1
A97: jeahrait | B97: 22 | C97: 1
A98: Cognito | B98: 41 | C98: 1
A99: Skynox | B99: 49 | C99: 1
A100: HoHo | B100: 9 | C100: 1
A101: UKDaza | B101: 39 | C101: 1
A102: Uarabei | B102: 87 | C102: 1
A103: NaNO | B103: 7 | C103: 1
A104: lllllllll | B104: 6 | C104: 1
A105: AVV | B105: 43 | C105: 1
A106: Reylight | B106: 27 | C106: 1
A107: Davidouni | B107: 26 | C107: 1
A108: ShÁdÔwDèÀtHx | B108: 24 | C108: 1
A109: Armaldo | B109: 1 | C109: 1
A110: Deadbolt | B110: 36 | C110: 1
A111: Dewd | B111: 12 | C111: 1
A112: jonk | B112: 9 | C112: 1
A113: Ruthy | B113: 40 | C113: 1
A114: IIIIIIIIIIII | B114: 0 | C114: 1
A115: overmend | B115: 9 | C115: 1
A116: MoonBeam | B116: 12 | C116: 1
A117: justaZerg | B117: 13 | C117: 1
A118: KnockOuT | B118: 11 | C118: 1
A119: Firk | B119: 42 | C119: 1
A120: Till | B120: 25 | C120: 1
A121: Luxor | B121: 7 | C121: 1
A122: SirAspiC | B122: 11 | C122: 1
A123: Judasz | B123: 29 | C123: 1
A124: SaDe | B124: 8 | C124: 1
A125: hrDG | B125: 46 | C125: 1
A126: Zephyr | B126: 120 | C126: 2
A127: IIIIIIIIIIII | B127: 9 | C127: 1
A128: Cosmin | B128: 9 | C128: 1
A129: Kireu | B129: 10 | C129: 1
A130: llllllllllll | B130: 9 | C130: 1
A131: LaSerrure | B131: 58 | C131: 1
A132: GeeGeeGee | B132: 24 | C132: 1
A133: WARMACHINE | B133: 10 | C133: 1
A134: ReIgnOfEvIL | B134: 6 | C134: 1
A135: Ceonsamea | B135: 51 | C135: 1
A136: Carbine | B136: 11 | C136: 1
A137: PoWeRMuLe | B137: 9 | C137: 1
A138: Luke | B138: 6 | C138: 1
A139: ShEEp | B139: 28 | C139: 1
A140: BaLoOzA | B140: 10 | C140: 1
A141: Sheeno | B141: 10 | C141: 1
A142: CityHunter | B142: 42 | C142: 1
A143: CheesyJunk | B143: 5 | C143: 1
A144: NoFaCe | B144: 8 | C144: 1
A145: Timekiller | B145: 27 | C145: 1
A146: llllllllllll | B146: 9 | C146: 1
A147: Artifex | B147: 1 | C147: 1
A148: Bomber | B148: 13 | C148: 1
A149: Sesshomaru | B149: 40 | C149: 1
A150: Insømnia | B150: 10 | C150: 1
A151: Show | B151: 7 | C151: 1
A152: Gisitar | B152: 10 | C152: 1
A153: lesang | B153: 6 | C153: 1
A154: KaZ | B154: 12 | C154: 1
A155: Jono | B155: 31 | C155: 1
A156: Lorus | B156: 6 | C156: 1
A157: TMNKA | B157: 0 | C157: 1
A158: FinnZi | B158: 13 | C158: 1
A159: GorillaMunch | B159: 35 | C159: 1
A160: IIIIIIIIIIII | B160: 11 | C160: 1
A161: Hurricane | B161: 19 | C161: 1
A162: ExCaL | B162: 37 | C162: 1
A163: FujMs | B163: 16 | C163: 1
A164: Elezra | B164: 2 | C164: 1
A165: PoSeR | B165: 3 | C165: 1
A166: MBK | B166: 0 | C166: 1
A167: TheDancer | B167: 8 | C167: 1
A168: Sangoku | B168: 5 | C168: 1
A169: VoX | B169: 168 | C169: 2
A170: Aemperaxe | B170: 51 | C170: 1
A171: Faith | B171: 6 | C171: 1
A172: Vrekkles | B172: 127 | C172: 2
A173: Illuminance | B173: 9 | C173: 1
A174: Msk | B174: 82 | C174: 1
A175: Slavin | B175: 10 | C175: 1
A176: piodd | B176: 45 | C176: 1
A177: Mtz | B177: 40 | C177: 1
A178: Wiesong | B178: 26 | C178: 1
A179: Antagonist | B179: 0 | C179: 1
A180: villee | B180: 24 | C180: 1
A181: FalcoN | B181: 0 | C181: 1
A182: Moogle | B182: 136 | C182: 2
A183: Cynthia | B183: 20 | C183: 1
A184: Mihai | B184: 2 | C184: 1
A185: Bobon | B185: 2 | C185: 1
A186: LftoverCraft | B186: 33 | C186: 1
A187: Floff | B187: 75 | C187: 1
A188: ZerAtO | B188: 7 | C188: 1
A189: nope | B189: 21 | C189: 1
A190: PsyCrou | B190: 15 | C190: 1
A191: JiiPee | B191: 23 | C191: 1
A192: hulis | B192: 16 | C192: 1
A193: PANTERA | B193: 7 | C193: 1
A194: Chrome | B194: 10 | C194: 1
A195: Bakemonoda | B195: 25 | C195: 1
A196: nybbler | B196: 26 | C196: 1
A197: Shure | B197: 59 | C197: 1
A198: Jeyopo | B198: 11 | C198: 1
A199: Stonecold | B199: 11 | C199: 1
A200: LuckyLlama | B200: 47 | C200: 1
... 13859 more rows

Sheet Master
A1: First | B1: 234 | C1: 2
A2: llllllllllll | B2: 339 | C2: 2
A3: MǂForGG | B3: 115 | C3: 1
A4: llllllllllll | B4: 346 | C4: 2
A5: hOpe | B5: 216 | C5: 2
A6: Lilbow | B6: 196 | C6: 2
A7: Dan | B7: 255 | C7: 2
A8: MMA | B8: 286 | C8: 2
A9: roof | B9: 132 | C9: 1
A10: Meechum | B10: 16 | C10: 1
A11: uniQFazer | B11: 15 | C11: 1
A12: IIIIIIIIIIII | B12: 9 | C12: 1
A13: llllllllllll | B13: 12 | C13: 1
A14: kauP | B14: 17 | C14: 1
A15: IlIlIllllIIl | B15: 325 | C15: 2
A16: IlIlIIlIIlIl | B16: 16 | C16: 1
A17: PRIMELOT | B17: 45 | C17: 1
A18: Alai | B18: 46 | C18: 1
A19: Blackbirds | B19: 18 | C19: 1
A20: TcUltimate | B20: 17 | C20: 1
A21: DiaBoLuS | B21: 79 | C21: 1
A22: llllllllllll | B22: 12 | C22: 1
A23: Nachtigaller | B23: 20 | C23: 1
A24: Cube | B24: 18 | C24: 1
A25: llllllllllll | B25: 35 | C25: 1
A26: Mzrk | B26: 113 | C26: 1
A27: ZhuGeLiang | B27: 7 | C27: 1
A28: souL | B28: 22 | C28: 1
A29: llIIIllllIIl | B29: 76 | C29: 1
A30: Marsman | B30: 1 | C30: 1
A31: HINOIPL | B31: 41 | C31: 1
A32: llllllllllll | B32: 196 | C32: 2
A33: HEADHUNTER | B33: 103 | C33: 1
A34: NeutronX | B34: 19 | C34: 1
A35: NTX | B35: 0 | C35: 1
A36: EGJD | B36: 474 | C36: 3
A37: RepmEs | B37: 71 | C37: 1
A38: IIIIIIIIIIII | B38: 54 | C38: 1
A39: NrSUnderdark | B39: 86 | C39: 1
A40: InZaNe | B40: 13 | C40: 1
A41: llllllllllll | B41: 44 | C41: 1
A42: Stoic | B42: 204 | C42: 2
A43: Clyde | B43: 147 | C43: 1
A44: Diffe | B44: 12 | C44: 1
A45: POX | B45: 16 | C45: 1
A46: llllllllllll | B46: 47 | C46: 1
A47: IIIIIIIIIIII | B47: 65 | C47: 1
A48: memOryfreak | B48: 64 | C48: 1
A49: IIIIIIIIIIII | B49: 278 | C49: 2
A50: FunK | B50: 54 | C50: 1
A51: Strange | B51: 191 | C51: 2
A52: GurrenLagann | B52: 90 | C52: 1
A53: Python | B53: 35 | C53: 1
A54: DeLiver | B54: 25 | C54: 1
A55: Narsil | B55: 15 | C55: 1
A56: lllllllllll | B56: 17 | C56: 1
A57: DaddyForte | B57: 16 | C57: 1
A58: Girondelle | B58: 0 | C58: 1
A59: Seven | B59: 0 | C59: 1
A60: Kimo | B60: 12 | C60: 1
A61: Brainless | B61: 13 | C61: 1
A62: Prebs | B62: 26 | C62: 1
A63: Jiyeon | B63: 17 | C63: 1
A64: JackO | B64: 22 | C64: 1
A65: RorO | B65: 13 | C65: 1
A66: HermeS | B66: 147 | C66: 1
A67: ÐuriaN | B67: 296 | C67: 2
A68: Evire | B68: 80 | C68: 1
A69: sPlico | B69: 154 | C69: 1
A70: StarEagle | B70: 78 | C70: 1
A71: JungleKing | B71: 126 | C71: 1
A72: Poo | B72: 63 | C72: 1
A73: lllIIIlllIII | B73: 129 | C73: 1
A74: MiNiMaTh | B74: 283 | C74: 2
A75: SpellSinger | B75: 107 | C75: 1
A76: TaylorSwift | B76: 13 | C76: 1
A77: RenZan | B77: 12 | C77: 1
A78: FireflyHugs | B78: 85 | C78: 1
A79: llllllllllll | B79: 15 | C79: 1
A80: Cowman | B80: 73 | C80: 1
A81: Relmer | B81: 10 | C81: 1
A82: Quent | B82: 157 | C82: 1
A83: PsyKo | B83: 50 | C83: 1
A84: Fmtc | B84: 15 | C84: 1
A85: Stephano | B85: 517 | C85: 3
A86: Fapyllama | B86: 47 | C86: 1
A87: MightyThor | B87: 186 | C87: 2
A88: Hyoyeon | B88: 18 | C88: 1
A89: Poof | B89: 21 | C89: 1
A90: ReasN | B90: 13 | C90: 1
A91: KimG | B91: 95 | C91: 1
A92: bArtH | B92: 44 | C92: 1
A93: llllllllllll | B93: 62 | C93: 1
A94: dTefel | B94: 473 | C94: 3
A95: Ravage | B95: 14 | C95: 1
A96: ZueD | B96: 13 | C96: 1
A97: llllllllllll | B97: 0 | C97: 1
A98: ABomB | B98: 294 | C98: 2
A99: lIlIlIlIlIlI | B99: 25 | C99: 1
A100: IIIIIIIIIIII | B100: 13 | C100: 1
A101: AiSeiplo | B101: 25 | C101: 1
A102: poof | B102: 108 | C102: 1
A103: llllllllllll | B103: 92 | C103: 1
A104: llllllllllll | B104: 90 | C104: 1
A105: Railgan | B105: 10 | C105: 1
A106: HateMe | B106: 16 | C106: 1
A107: llllllllllll | B107: 19 | C107: 1
A108: MouLou | B108: 75 | C108: 1
A109: FavOr | B109: 11 | C109: 1
A110: Days | B110: 8 | C110: 1
A111: Daedalus | B111: 44 | C111: 1
A112: DukeHenry | B112: 148 | C112: 1
A113: llllllllllll | B113: 581 | C113: 4
A114: Tefel | B114: 39 | C114: 1
A115: Walrus | B115: 18 | C115: 1
A116: Mercenary | B116: 97 | C116: 1
A117: Toki | B117: 4 | C117: 1
A118: baldwin | B118: 27 | C118: 1
A119: Harpner | B119: 273 | C119: 2
A120: ManeWicht | B120: 118 | C120: 1
A121: DarkSwarM | B121: 12 | C121: 1
A122: BubbleJR | B122: 24 | C122: 1
A123: LightWeight | B123: 16 | C123: 1
A124: ToySoldier | B124: 291 | C124: 2
A125: Thomas | B125: 24 | C125: 1
A126: Eiki | B126: 334 | C126: 2
A127: Kumiko | B127: 20 | C127: 1
A128: blacki | B128: 50 | C128: 1
A129: teetie | B129: 15 | C129: 1
A130: ZAiN | B130: 142 | C130: 1
A131: lIlIlIlIlIlI | B131: 4 | C131: 1
A132: Satsuki | B132: 14 | C132: 1
A133: Selendis | B133: 42 | C133: 1
A134: Lancel | B134: 177 | C134: 1
A135: llllllllllll | B135: 15 | C135: 1
A136: Illias | B136: 9 | C136: 1
A137: Reynor | B137: 17 | C137: 1
A138: Illusion | B138: 597 | C138: 4
A139: Koerby | B139: 71 | C139: 1
A140: Petros | B140: 21 | C140: 1
A141: llllllllllll | B141: 543 | C141: 4
A142: llllllllllll | B142: 456 | C142: 3
A143: SteasY | B143: 21 | C143: 1
A144: IIIIIIIIIIII | B144: 41 | C144: 1
A145: llllllllllll | B145: 659 | C145: 4
A146: iLiZiUM | B146: 19 | C146: 1
A147: Dwar | B147: 11 | C147: 1
A148: Kaitlyn | B148: 21 | C148: 1
A149: Gatsby | B149: 39 | C149: 1
A150: TiMmi | B150: 100 | C150: 1
A151: imre | B151: 16 | C151: 1
A152: Ryuu | B152: 19 | C152: 1
A153: JoJo | B153: 11 | C153: 1
A154: Mognosch | B154: 11 | C154: 1
A155: MangO | B155: 11 | C155: 1
A156: TanerbusFR | B156: 42 | C156: 1
A157: ZephyrPrime | B157: 169 | C157: 1
A158: DaZe | B158: 26 | C158: 1
A159: riperino | B159: 122 | C159: 1
A160: Arbitter | B160: 0 | C160: 1
A161: IIIlllIIIlll | B161: 611 | C161: 4
A162: Nedi | B162: 13 | C162: 1
A163: AldriSiAldri | B163: 22 | C163: 1
A164: KoyoT | B164: 9 | C164: 1
A165: Frank | B165: 16 | C165: 1
A166: dvii | B166: 51 | C166: 1
A167: XeLiatH | B167: 27 | C167: 1
A168: NSN | B168: 49 | C168: 1
A169: ValueAtRisk | B169: 0 | C169: 1
A170: Mattzour | B170: 18 | C170: 1
A171: SubZero | B171: 19 | C171: 1
A172: llllllllllll | B172: 226 | C172: 2
A173: Verdi | B173: 678 | C173: 4
A174: Zasz | B174: 25 | C174: 1
A175: Askabanu | B175: 194 | C175: 2
A176: Scrump | B176: 226 | C176: 2
A177: Разрывалус | B177: 69 | C177: 1
A178: Jimmeh | B178: 39 | C178: 1
A179: Mithra | B179: 35 | C179: 1
A180: Daz | B180: 70 | C180: 1
A181: IIIIIIIIIIII | B181: 346 | C181: 2
A182: JeremGS | B182: 47 | C182: 1
A183: BaSsLiNe | B183: 19 | C183: 1
A184: Jade | B184: 233 | C184: 2
A185: Lampan | B185: 0 | C185: 1
A186: Major | B186: 39 | C186: 1
A187: SiNiIku | B187: 231 | C187: 2
A188: Judgement | B188: 16 | C188: 1
A189: Regba | B189: 42 | C189: 1
A190: RustySpork | B190: 15 | C190: 1
A191: Temnaes | B191: 108 | C191: 1
A192: sasu | B192: 15 | C192: 1
A193: StatiC | B193: 11 | C193: 1
A194: sAviOr | B194: 4 | C194: 1
A195: DirDevil | B195: 0 | C195: 1
A196: SwitchBack | B196: 18 | C196: 1
A197: SuperConnard | B197: 566 | C197: 4
A198: Imotep | B198: 20 | C198: 1
A199: Ascending | B199: 37 | C199: 1
A200: BLinKor | B200: 20 | C200: 1
... 2350 more rows

Sheet GM
A1: llllllllllll | B1: 28 | C1: 1
A2: llllllllllll | B2: 29 | C2: 1
A3: llllllllllll | B3: 15 | C3: 1
A4: viOLet | B4: 19 | C4: 1
A5: lIIllIIlIIIl | B5: 24 | C5: 1
A6: IllIIllIlllI | B6: 14 | C6: 1
A7: Happy | B7: 18 | C7: 1
A8: llllllllllll | B8: 117 | C8: 1
A9: llllllllllll | B9: 80 | C9: 1
A10: LiquidMaNa | B10: 22 | C10: 1
A11: Izayoi | B11: 91 | C11: 1
A12: LiquidTLO | B12: 15 | C12: 1
A13: lIlIlIlIlIlI | B13: 109 | C13: 1
A14: IlIlIlIlIlIl | B14: 146 | C14: 1
A15: IIIIllIllI | B15: 74 | C15: 1
A16: IIIIIIIIIIII | B16: 23 | C16: 1
A17: IIIIIIIII | B17: 121 | C17: 1
A18: ƑĕŁįĆįŤƴ | B18: 128 | C18: 1
A19: IlIlIllIIllI | B19: 40 | C19: 1
A20: llllllllllll | B20: 163 | C20: 1
A21: llllllllllll | B21: 139 | C21: 1
A22: VPbenQsLivko | B22: 15 | C22: 1
A23: DaN | B23: 83 | C23: 1
A24: RadekDaNa | B24: 46 | C24: 1
A25: llllllllllll | B25: 14 | C25: 1
A26: llllllllllll | B26: 11 | C26: 1
A27: lIlIllIlIlIl | B27: 122 | C27: 1
A28: TargA | B28: 54 | C28: 1
A29: llllllllllll | B29: 11 | C29: 1
A30: llllllllllll | B30: 91 | C30: 1
A31: Shinersen | B31: 0 | C31: 1
A32: llllllllllll | B32: 63 | C32: 1
A33: Kas | B33: 13 | C33: 1
A34: Cooltea | B34: 12 | C34: 1
A35: GoOdy | B35: 41 | C35: 1
A36: Starbuck | B36: 16 | C36: 1
A37: llllllllllll | B37: 35 | C37: 1
A38: KiToO | B38: 19 | C38: 1
A39: llllllllllll | B39: 141 | C39: 1
A40: IIllIIllIIll | B40: 141 | C40: 1
A41: Adonminus | B41: 37 | C41: 1
A42: AllianceSO | B42: 27 | C42: 1
A43: IIIIIIIIIIII | B43: 96 | C43: 1
A44: KOMANDER | B44: 0 | C44: 1
A45: Ignite | B45: 13 | C45: 1
A46: llllllllllll | B46: 148 | C46: 1
A47: llllllllllll | B47: 28 | C47: 1
A48: Serral | B48: 132 | C48: 1
A49: IIIIIIIIIIII | B49: 50 | C49: 1
A50: lIIlIIlIlIll | B50: 32 | C50: 1
A51: Elazer | B51: 14 | C51: 1
A52: llllllllllll | B52: 17 | C52: 1
A53: lIlIllIlIllI | B53: 70 | C53: 1
A54: POTATOMAN | B54: 60 | C54: 1
A55: ToD | B55: 143 | C55: 1
A56: PtitDrogo | B56: 76 | C56: 1
A57: DieStar | B57: 76 | C57: 1
A58: llllllllllll | B58: 89 | C58: 1
A59: IIIIIIIIIIII | B59: 98 | C59: 1
A60: Namshar | B60: 13 | C60: 1
A61: llllllllllll | B61: 37 | C61: 1
A62: Narcotic | B62: 17 | C62: 1
A63: AlaStOr | B63: 17 | C63: 1
A64: Ovix | B64: 20 | C64: 1
A65: Collapse | B65: 117 | C65: 1
A66: JEJUS | B66: 11 | C66: 1
A67: ROMPPERSTOMP | B67: 69 | C67: 1
A68: Balloon | B68: 12 | C68: 1
A69: llllllllllll | B69: 46 | C69: 1
A70: IIIIIIIIIIII | B70: 0 | C70: 1
A71: llllllllllll | B71: 98 | C71: 1
A72: IIIIIIIIIIII | B72: 98 | C72: 1
A73: llllllllllll | B73: 55 | C73: 1
A74: ShaDoWn | B74: 91 | C74: 1
A75: Mike | B75: 13 | C75: 1
A76: Senin | B76: 146 | C76: 1
A77: Downfall | B77: 95 | C77: 1
A78: IIIIIIIIIIII | B78: 32 | C78: 1
A79: llllIIIIllII | B79: 40 | C79: 1
A80: TomikuS | B80: 18 | C80: 1
A81: llllllllllll | B81: 146 | C81: 1
A82: lIIIIlllIlIl | B82: 12 | C82: 1
A83: llllllllllll | B83: 59 | C83: 1
A84: ÐràcØ | B84: 13 | C84: 1
A85: llIIlIlllllI | B85: 11 | C85: 1
A86: sYz | B86: 93 | C86: 1
A87: Rake | B87: 41 | C87: 1
A88: llllllllllll | B88: 56 | C88: 1
A89: llllllllllll | B89: 13 | C89: 1
A90: Snitchables | B90: 16 | C90: 1
A91: MiNiCrow | B91: 17 | C91: 1
A92: sEmtEx | B92: 146 | C92: 1
A93: DeViL | B93: 17 | C93: 1
A94: Spartfire | B94: 24 | C94: 1
A95: IIIIIIIIIIII | B95: 87 | C95: 1
A96: llllllllllll | B96: 0 | C96: 1
A97: Zeth | B97: 40 | C97: 1
A98: sLh | B98: 95 | C98: 1
A99: Pillilinne | B99: 86 | C99: 1
A100: Euthanasia | B100: 16 | C100: 1
A101: Serendipity | B101: 67 | C101: 1
A102: IIIIIIIII | B102: 0 | C102: 1
A103: llllllllllll | B103: 119 | C103: 1
A104: llllllllllll | B104: 25 | C104: 1
A105: HoBBiT | B105: 0 | C105: 1
A106: IIIIIIIIIIII | B106: 74 | C106: 1
A107: Zwanzig | B107: 64 | C107: 1
A108: IIIIIIIIIIII | B108: 112 | C108: 1
A109: IIIIIIIIIIII | B109: 160 | C109: 1
A110: Optimus | B110: 67 | C110: 1
A111: llllllllllll | B111: 2 | C111: 1
A112: Indy | B112: 49 | C112: 1
A113: AReS | B113: 14 | C113: 1
A114: UkraineStar | B114: 37 | C114: 1
A115: StorM | B115: 22 | C115: 1
A116: BlitzTao | B116: 55 | C116: 1
A117: llllllllllll | B117: 63 | C117: 1
A118: GrayWarden | B118: 1 | C118: 1
A119: stakimaN | B119: 11 | C119: 1
A120: aGaham | B120: 31 | C120: 1
A121: Julie | B121: 46 | C121: 1
A122: Illlllllllll | B122: 76 | C122: 1
A123: Aizen | B123: 18 | C123: 1
A124: ReiToR | B124: 21 | C124: 1
A125: IlIlIIIIl | B125: 79 | C125: 1
A126: llllllllllll | B126: 19 | C126: 1
A127: MadMonkey | B127: 15 | C127: 1
A128: desRow | B128: 48 | C128: 1
A129: llllllllllll | B129: 24 | C129: 1
A130: llllllllllll | B130: 70 | C130: 1
A131: SaltTheWound | B131: 65 | C131: 1
A132: lIlIlIlIlIlI | B132: 170 | C132: 1
A133: lalala | B133: 97 | C133: 1
A134: llllllllllll | B134: 73 | C134: 1
A135: IIIIIIIIIIII | B135: 1 | C135: 1
A136: ImNotCool | B136: 32 | C136: 1
A137: Complain | B137: 166 | C137: 1
A138: BsK | B138: 42 | C138: 1
A139: rebOrn | B139: 114 | C139: 1
A140: King | B140: 24 | C140: 1
A141: PuPu | B141: 37 | C141: 1
A142: Mix | B142: 11 | C142: 1
A143: IIIIIIIIIIII | B143: 40 | C143: 1
A144: AiLillekanin | B144: 143 | C144: 1
A145: ArotaX | B145: 14 | C145: 1
A146: SodoN | B146: 70 | C146: 1
A147: GSUDéca | B147: 38 | C147: 1
A148: Isputs | B148: 60 | C148: 1
A149: Ghost | B149: 156 | C149: 1
A150: CPU | B150: 12 | C150: 1
A151: FuRiOuS | B151: 78 | C151: 1
A152: llllllllllll | B152: 19 | C152: 1
A153: IIIIIIIIIIII | B153: 28 | C153: 1
A154: KIMCHI | B154: 26 | C154: 1
A155: Nogard | B155: 71 | C155: 1
A156: Wuschel | B156: 17 | C156: 1
A157: SAVENAFROMEU | B157: 77 | C157: 1
A158: llllllllllll | B158: 12 | C158: 1
A159: elfi | B159: 0 | C159: 1
A160: ILILILILILI | B160: 0 | C160: 1
A161: ShimOon | B161: 12 | C161: 1
A162: AcerBly | B162: 25 | C162: 1
A163: Skowryk | B163: 100 | C163: 1
A164: jeysen | B164: 75 | C164: 1
A165: Mazyspazy | B165: 15 | C165: 1
A166: NoCti | B166: 39 | C166: 1
A167: frozz | B167: 8 | C167: 1
A168: SpaceMarine | B168: 28 | C168: 1
A169: NeverDie | B169: 89 | C169: 1
A170: Denver | B170: 53 | C170: 1
A171: Sata | B171: 73 | C171: 1
A172: Ansopedi | B172: 70 | C172: 1
A173: Shatsy | B173: 136 | C173: 1
A174: WaKa | B174: 59 | C174: 1
A175: llllllllllll | B175: 45 | C175: 1
A176: Kaaapaaa | B176: 16 | C176: 1
A177: aeontech | B177: 34 | C177: 1
A178: GunGFuBanDa | B178: 97 | C178: 1
A179: Petraeus | B179: 11 | C179: 1
A180: VLS | B180: 95 | C180: 1
A181: llllllllllll | B181: 109 | C181: 1
A182: Shiek | B182: 80 | C182: 1
A183: Cocaine | B183: 50 | C183: 1
A184: IIIIIIIIIIII | B184: 18 | C184: 1
A185: IlIlIlIl | B185: 41 | C185: 1
A186: LiquidBunny | B186: 54 | C186: 1
A187: Foreseer | B187: 14 | C187: 1
A188: Thorminator | B188: 39 | C188: 1
A189: VanillaKiss | B189: 15 | C189: 1
A190: IIIIIIIIIIII | B190: 21 | C190: 1
A191: ZeroToHero | B191: 120 | C191: 1
A192: IlIlIlIlIlIl | B192: 73 | C192: 1
A193: IIIIIIIIIIII | B193: 8 | C193: 1
A194: Naffy | B194: 72 | C194: 1
A195: IIIIIIIIIII | B195: 15 | C195: 1
A196: llllllllllll | B196: 171 | C196: 1
